Cogmind - Beta 16.1 @@@ ROGUE MODE // 2026.04.06 @ 18:08:23 Player: Infomantis Result: Escaped! Performance ------------- Evolutions (9) 4500 Regions Visited (18) 3600 Robots Destroyed (7) 35 Value Destroyed (155) 155 Prototype IDs (3) 60 Alien Tech Used (0) 0 Bonus (22322) 22322 TOTAL SCORE: 30672 Bonus ------- Pacifist 200 Entered Garrisons 400 Entered DSFs 1500 Win 3000 Win Speed 17222 Cogmind --------- Core Integrity 1466/1600 Matter 218/300 Energy 188/190 System Corruption 0% Temperature Cool (-196) Movement Hovering (56) Location To Epsilon Eridani Parts ------- > --- POWER (2) -------- Light Quantum Reactor > --- PROPULSION (12) -- Antigrav Array Antigrav Array > --- UTILITY (9) ------ Advanced Cryofiber Web Improved Coolant Injector Improved Coolant Injector Medium Storage Unit Improved Signal Interpreter ECM Suite Advanced Reaction Control System Hacking Suite > --- WEAPON (2) ------- Improved Plasma Cutter > --- INVENTORY (10) --- Improved Fusion Compressor Cooled Field Propulsion Drive Energy Well (350) Matter Compressor (93) Chainsword Peak State ------------ > --- POWER ------------ Light Quantum Reactor Light Quantum Reactor > --- PROPULSION ------- Antigrav Array Antigrav Array Antigrav Array Antigrav Array Antigrav Array Antigrav Array > --- UTILITY ---------- Advanced Cryofiber Web Improved Coolant Injector Improved Coolant Injector Medium Storage Unit Improved Sensor Array Improved Signal Interpreter Hacking Suite > --- WEAPON ----------- Improved KE Penetrator > --- INVENTORY -------- Antimatter Reactor Improved Fusion Compressor Cooled Field Propulsion Drive Energy Well Matter Compressor Advanced Reaction Control System Improved Plasma Cutter Chainsword [Rating: 154] Favorites ----------- Power Antimatter Reactor Power Core Fusion Compressor Reactor Antimatter Reactor Propulsion Xenon Bombardment Thruster Treads Light Treads Leg Improved Titanium Leg Hover Unit Antigrav Array Flight Unit Xenon Bombardment Thruster Utility Improved Signal Interpreter Device Improved Coolant Injector Storage Medium Storage Unit Processor Improved Signal Interpreter Hackware Hacking Suite Protection Improved Power Shielding Weapon Chainsword Ballistic Gun Improved KE Penetrator Launcher Grenade Launcher Special Weapon Improved Plasma Cutter Impact Weapon Hammer Slashing Weapon Chainsword Build | -11 -10 -10 -9 -8 -7 -7 -7 -7 -6 -5 -4 -4 -4 -3 -2 -2 -2 -1 ------- Run | Yrd Mat Min Mat Mat Fac Was Fac DSF Fac Fac Fac DSF Gar Res Res DSF Gar Acc Slots Evolved 18 | . . . 2 2 2 . . . 2 2 2 . . 2 2 . . 2 Power 1 | . . . . . 1 . . . . . . . . . . . . . Propulsion 10 | . . . 1 2 . . . . 1 1 1 . . 1 2 . . 1 Utility 7 | . . . 1 . 1 . . . 1 1 1 . . 1 . . . 1 Weapon . | . . . . . . . . . . . . . . . . . . . Parts Attached 62 | 2 . . 2 3 . 1 3 15 3 4 2 1 . 12 4 6 . 4 Power 6 | . . . . . . . . 2 . . . . . 1 . 2 . 1 Engine . | . . . . . . . . . . . . . . . . . . . Core 2 | . . . . . . . . 2 . . . . . . . . . . Reactor 4 | . . . . . . . . . . . . . . 1 . 2 . 1 Propulsion 31 | 2 . . . 2 . . 1 9 2 2 1 1 . 6 . 4 . 1 Treads 2 | 2 . . . . . . . . . . . . . . . . . . Leg 1 | . . . . . . . 1 . . . . . . . . . . . Wheel . | . . . . . . . . . . . . . . . . . . . Hover 8 | . . . . . . . . . . . . . . 3 . 4 . 1 Flight 20 | . . . . 2 . . . 9 2 2 1 1 . 3 . . . . Utility 17 | . . . . 1 . 1 1 3 1 2 1 . . 4 2 . . 1 Device 7 | . . . . . . . . . 1 1 . . . 4 . . . 1 Storage 2 | . . . . . . . . 1 . . . . . . 1 . . . Processor 3 | . . . . 1 . 1 1 . . . . . . . . . . . Hackware 2 | . . . . . . . . . . . 1 . . . 1 . . . Protection 3 | . . . . . . . . 2 . 1 . . . . . . . . Artifact . | . . . . . . . . . . . . . . . . . . . Weapon 8 | . . . 2 . . . 1 1 . . . . . 1 2 . . 1 Energy Gun . | . . . . . . . . . . . . . . . . . . . Energy Cannon . | . . . . . . . . . . . . . . . . . . . Ballistic Gun 2 | . . . . . . . . . . . . . . . 2 . . . Ballistic Cannon . | . . . . . . . . . . . . . . . . . . . Launcher 1 | . . . 1 . . . . . . . . . . . . . . . Special Weapon 1 | . . . . . . . . . . . . . . . . . . 1 Impact Weapon 1 | . . . 1 . . . . . . . . . . . . . . . Slashing Weapon 3 | . . . . . . . 1 1 . . . . . 1 . . . . Piercing Weapon . | . . . . . . . . . . . . . . . . . . . Special Melee Weapon . | . . . . . . . . . . . . . . . . . . . Unidentified Prototypes 3 | . . . . . . . . . . . . . . 2 1 . . . Parts Lost 34 | . . . 1 2 . 1 . 5 . 1 . 4 4 4 . 2 2 8 Power 3 | . . . . . . . . . . . . 1 . . . . . 2 Propulsion 24 | . . . 1 2 . . . 5 . 1 . 3 3 3 . 1 1 4 Utility 4 | . . . . . . . . . . . . . 1 1 . 1 . 1 Weapon 3 | . . . . . . 1 . . . . . . . . . . 1 1 Highest Loss Streak 8 | . . . 1 2 . 1 . 5 . 1 . 4 8 2 . 2 2 4 To Critical Strikes . | . . . . . . . . . . . . . . . . . . . Average Backups 6 | . . 1 2 3 3 3 4 7 7 6 8 7 7 8 6 7 9 6 Power . | . . . . . . . . . . . . . . . 1 2 2 1 Propulsion 1 | . . . 1 1 1 1 . 3 3 1 1 . . . . . 2 1 Utility 2 | . . . . . 1 1 2 2 2 2 4 4 4 4 3 3 3 2 Weapon 1 | . . 1 1 1 1 1 1 1 2 2 2 2 2 1 1 1 1 1 Tool/Special . | . . . . . . . . . . . . . . . . . . . Unused Backups 5 | . . . . . . . . . . . . . . 1 . . . 4 Power 1 | . . . . . . . . . . . . . . . . . . 1 Propulsion . | . . . . . . . . . . . . . . . . . . . Utility 3 | . . . . . . . . . . . . . . 1 . . . 2 Weapon 1 | . . . . . . . . . . . . . . . . . . 1 Tool/Special . | . . . . . . . . . . . . . . . . . . . Average Slot Usage (%) 53 | . 28 28 28 30 15 17 21 61 79 83 84 81 66 61 63 72 70 53 Core 2 | . . . . . . . . 7 13 11 10 7 5 1 . . . . Reactor 1 | . . . . . . . . . . . . . . 2 4 4 8 5 Treads 3 | . 28 28 20 3 . . 5 3 . . . . . . . . . . Hover 5 | . . . . . . . . . . . . . . 6 13 17 21 15 Flight 14 | . . . . 12 . . . 23 37 39 42 36 27 20 13 7 3 . Device 8 | . . . . . . . . . 4 5 10 10 10 14 17 17 17 17 Storage 3 | . . . . . . . . 5 6 5 5 5 5 4 4 4 4 4 Processor 4 | . . . . 6 7 11 5 7 6 5 5 5 5 4 4 4 4 4 Protection 2 | . . . . . . . . 1 4 7 5 5 5 4 4 2 . . Impact Weapon 1 | . . . 6 9 7 5 . . . . . . . . . . . . Slashing Weapon 1 | . . . . . . . 6 7 6 5 5 5 3 . . . . . Peak Build Rating 154 | 2 2 2 3 7 4 10 12 38 48 64 68 68 56 107 121 151 151 154 Average Rating 61 | 1 2 2 2 5 4 8 8 29 47 54 65 61 50 85 110 135 147 111 On Entrance 44 | . 2 2 2 2 4 4 . 12 35 48 60 68 56 38 96 121 151 140 Avg Prop Armor Cover (%) 18 | 41 41 41 37 30 . . 34 20 . 2 . . . 14 6 2 1 . Naked Turns 10 | . . . . . . 7 3 . . . . . . . . . . . Heaviest Build 57 | . . . 2 2 2 2 3 23 26 34 27 27 22 34 44 57 56 50 Greatest Support 156 | 20 3 3 3 8 3 3 3 30 36 42 49 49 37 78 78 130 130 156 Greatest Overweight (x) 1 | . . . . . . . . . . . . . . 1 . . . . Average Overweight (x) . | . . . . . . . . . . . . . . . . . . . Largest Inventory Capacity 10 | 5 5 5 5 5 5 5 5 10 10 10 10 10 10 10 10 10 10 10 Average Capacity 8 | 5 5 5 5 5 5 5 5 9 10 10 10 10 10 10 10 10 10 10 Most Carried 10 | . 1 1 3 4 3 3 5 10 9 10 9 8 8 10 8 10 10 8 Average Carried 6 | . . 1 2 3 3 3 4 8 6 6 8 7 7 8 6 9 10 6 Final Capacity 10 | 5 5 5 5 5 5 5 5 10 10 10 10 10 10 10 10 10 10 10 Final Carried 10 | . 1 1 3 3 3 3 5 10 7 10 8 7 8 7 7 10 10 5 Class Distribution -------------------- 55% | Mutant 44% | Sprinter Dominant Class ---------------- Mutant | -10/Materials Mutant | -10/Mines Mutant | -9/Materials Mutant | -8/Materials Mutant | -7/Factory Mutant | -7/Waste Mutant | -7/Factory Mutant | -7/DSF Sprinter | -6/Factory Sprinter | -5/Factory Sprinter | -4/Factory Sprinter | -4/DSF Sprinter | -4/Garrison Sprinter | -3/Research Sprinter | -2/Research Mutant | -2/DSF Mutant | -2/Garrison Mutant | -1/Access Resources | -11 -10 -10 -9 -8 -7 -7 -7 -7 -6 -5 -4 -4 -4 -3 -2 -2 -2 -1 ----------- Run | Yrd Mat Min Mat Mat Fac Was Fac DSF Fac Fac Fac DSF Gar Res Res DSF Gar Acc Matter Collected 916 | 169 . . 91 . . . . 7 . 284 . . . 336 . . . 29 Remotely . | . . . . . . . . . . . . . . . . . . . Salvage Created 459 | . . . 61 . . . . . . 284 . . . 114 . . . . Parts 17 | . . . 7 . . . . . . 5 . . . 5 . . . . Haulers Intercepted . | . . . . . . . . . . . . . . . . . . . Recyclers Shooed . | . . . . . . . . . . . . . . . . . . . Parts Field Recycled . | . . . . . . . . . . . . . . . . . . . Retrieved Matter . | . . . . . . . . . . . . . . . . . . . Parts Self-Destructed . | . . . . . . . . . . . . . . . . . . . Prevented . | . . . . . . . . . . . . . . . . . . . Parts Restored . | . . . . . . . . . . . . . . . . . . . Kills | -11 -10 -10 -9 -8 -7 -7 -7 -7 -6 -5 -4 -4 -4 -3 -2 -2 -2 -1 ------- Run | Yrd Mat Min Mat Mat Fac Was Fac DSF Fac Fac Fac DSF Gar Res Res DSF Gar Acc Combat Hostiles Destroyed 4 | . . . 4 . . . . . . . . . . . . . . . AOE 3 | . . . 3 . . . . . . . . . . . . . . . Classes Destroyed 3 | . . . 2 . . . . . . 1 . . . . . . . . Recycler 3 | . . . . . . . . . . 2 . . . 1 . . . . Swarmer 3 | . . . 3 . . . . . . . . . . . . . . . Sentry 1 | . . . 1 . . . . . . . . . . . . . . . Best Kill Streak 3 | . . . 3 . . . . . . 2 . . . 1 . . . . Combat Bots Only 3 | . . . 3 . . . . . . . . . . . . . . . Max Kills in Single Turn 2 | . . . 2 . . . . . . 1 . . . 1 . . . . Gunslinging . | . . . . . . . . . . . . . . . . . . . Exploded 2 | . . . 2 . . . . . . . . . . . . . . . Melee . | . . . . . . . . . . . . . . . . . . . Uniques/NPCs Destroyed . | . . . . . . . . . . . . . . . . . . . Combat | -11 -10 -10 -9 -8 -7 -7 -7 -7 -6 -5 -4 -4 -4 -3 -2 -2 -2 -1 -------- Run | Yrd Mat Min Mat Mat Fac Was Fac DSF Fac Fac Fac DSF Gar Res Res DSF Gar Acc Hostile Shots Fired 410 | . . . 36 36 . 1 . 35 . 12 . 6 42 65 . 58 88 31 Missed 202 | . . . 9 21 . . . 20 . 6 . 4 24 35 . 31 41 11 Hits 208 | . . . 27 15 . 1 . 15 . 6 . 2 18 30 . 27 47 20 Melee 3 | . . . . . . 1 . . . 1 . 1 . . . . . . Projectile 205 | . . . 27 15 . . . 15 . 5 . 1 18 30 . 27 47 20 AOE 3 | . . . . . . . . . . 1 . 2 . . . . . . Critical Strikes 6 | . . . 1 . . 1 . . . 2 . . . . . . . 2 Part Disruptions 1 | . . . . . . . . . . 1 . . . . . . . . Damage Taken 4646 | . . . 363 206 . 49 . 392 . 253 . 94 307 797 . 582 954 649 Core 901 | . . . 80 114 . 49 . 26 . 106 . 2 105 119 . 106 60 134 Absorbed by Shields 11 | . . . . . . . . . . . . . 11 . . . . . Redirected to Shielding 151 | . . . . . . . . . . . . 2 35 49 . 65 . . Core Remaining (%) 90 | 100 . 100 80 79 . . . 89 100 89 . . 90 90 . . 88 91 Volleys Fired 2 | . . . 2 . . . . . . . . . . . . . . . Largest 1 | . . . 1 . . . . . . . . . . . . . . . Hottest 30 | . . . 30 . . . . . . . . . . . . . . . Shots Fired 2 | . . . 2 . . . . . . . . . . . . . . . Gun . | . . . . . . . . . . . . . . . . . . . Cannon . | . . . . . . . . . . . . . . . . . . . Launcher 2 | . . . 2 . . . . . . . . . . . . . . . Special . | . . . . . . . . . . . . . . . . . . . Kinetic . | . . . . . . . . . . . . . . . . . . . Thermal . | . . . . . . . . . . . . . . . . . . . Explosive 2 | . . . 2 . . . . . . . . . . . . . . . Electromagnetic . | . . . . . . . . . . . . . . . . . . . Robot Hit Streak 1 | . . . 1 . . . . . . . . . . . . . . . Robot Miss Streak . | . . . . . . . . . . . . . . . . . . . Penetration Max . | . . . . . . . . . . . . . . . . . . . Secondary Targets . | . . . . . . . . . . . . . . . . . . . Shots Hit Robots 13 | . . . 3 . . . 1 . 1 7 . . . 1 . . . . Core Hits 5 | . . . 3 . . . . . . 2 . . . . . . . . Critical Kills . | . . . . . . . . . . . . . . . . . . . Critical Parts Destroyed 1 | . . . 1 . . . . . . . . . . . . . . . Critical Strikes 1 | . . . 1 . . . . . . . . . . . . . . . Smash 1 | . . . 1 . . . . . . . . . . . . . . . Melee Attacks 19 | . . . 4 1 . . 3 . 2 8 . . . 1 . . . . Impact 5 | . . . 4 1 . . . . . . . . . . . . . . Slashing 14 | . . . . . . . 3 . 2 8 . . . 1 . . . . Piercing . | . . . . . . . . . . . . . . . . . . . Sneak Attacks 6 | . . . . . . . 1 . 1 3 . . . 1 . . . . Combat Hostiles . | . . . . . . . . . . . . . . . . . . . Follow-up Attacks . | . . . . . . . . . . . . . . . . . . . Damage Inflicted 900 | . . . 210 . . . 74 . 72 446 . . . 98 . . . . Guns . | . . . . . . . . . . . . . . . . . . . Cannons . | . . . . . . . . . . . . . . . . . . . Explosions 149 | . . . 149 . . . . . . . . . . . . . . . Melee 713 | . . . 48 . . . 74 . 72 446 . . . 73 . . . . Ramming 38 | . . . 13 . . . . . . . . . . 25 . . . . Kinetic . | . . . . . . . . . . . . . . . . . . . Thermal . | . . . . . . . . . . . . . . . . . . . Explosive 149 | . . . 149 . . . . . . . . . . . . . . . Electromagnetic . | . . . . . . . . . . . . . . . . . . . Impact 48 | . . . 48 . . . . . . . . . . . . . . . Slashing 665 | . . . . . . . 74 . 72 446 . . . 73 . . . . Piercing . | . . . . . . . . . . . . . . . . . . . Highest Corruption 3 | . . . 2 . . . . . 1 3 . 3 3 2 . . . . Average Corruption 2 | . . . 2 . . . . . 1 3 . 3 3 2 . . . . Corruption Purged . | . . . . . . . . . . . . . . . . . . . Corruption Blocked 7 | . . . . . . 7 . . . . . . . . . . . . Effects 1 | . . . . . . . . . . . . . 1 . . . . . Energy Discharges 1 | . . . . . . . . . . . . . 1 . . . . . Overload Shots . | . . . . . . . . . . . . . . . . . . . Overflow Damage 281 | . . . 41 . . . 34 . 32 131 . . . 43 . . . . Projectiles . | . . . . . . . . . . . . . . . . . . . Explosions 26 | . . . 26 . . . . . . . . . . . . . . . Melee 255 | . . . 15 . . . 34 . 32 131 . . . 43 . . . . Knockbacks . | . . . . . . . . . . . . . . . . . . . Impact . | . . . . . . . . . . . . . . . . . . . Kinetic . | . . . . . . . . . . . . . . . . . . . Secondary . | . . . . . . . . . . . . . . . . . . . Self-Inflicted Damage 51 | . . . 39 . . . . . . . . . . 12 . . . . Shots 2 | . . . 2 . . . . . . . . . . . . . . . Rammed 7 | . . . 4 . . . . . . . . . . 3 . . . . Targets Rammed 7 | . . . 4 . . . . . . . . . . 3 . . . . Kicked . | . . . . . . . . . . . . . . . . . . . Crushed . | . . . . . . . . . . . . . . . . . . . Highest Temperature 266 | . . . 2 . . . . . 48 266 20 8 32 . . . 142 196 Average Temperature 92 | . . . 1 . . . . . 22 109 20 8 13 . . . 90 105 Received Heat Transfer 399 | . . . 72 108 . . . . . 54 . . 9 57 . . 90 9 Siege Activations . | . . . . . . . . . . . . . . . . . . . Martial Activations . | . . . . . . . . . . . . . . . . . . . Shielding Activations . | . . . . . . . . . . . . . . . . . . . Robots Disrupted . | . . . . . . . . . . . . . . . . . . . Combat Hostiles . | . . . . . . . . . . . . . . . . . . . Robots Corrupted 1 | . . . 1 . . . . . . . . . . . . . . . Combat Hostiles 1 | . . . 1 . . . . . . . . . . . . . . . Parts Fried 1 | . . . 1 . . . . . . . . . . . . . . . Impact Corruptions 1 | . . . 1 . . . . . . . . . . . . . . . Robots Melted . | . . . . . . . . . . . . . . . . . . . Combat Hostiles . | . . . . . . . . . . . . . . . . . . . Parts Melted . | . . . . . . . . . . . . . . . . . . . Heat Transferred . | . . . . . . . . . . . . . . . . . . . Parts Sabotaged . | . . . . . . . . . . . . . . . . . . . Parts Stolen . | . . . . . . . . . . . . . . . . . . . Parts Stripped . | . . . . . . . . . . . . . . . . . . . Power Chain Reactions . | . . . . . . . . . . . . . . . . . . . Alert | -11 -10 -10 -9 -8 -7 -7 -7 -7 -6 -5 -4 -4 -4 -3 -2 -2 -2 -1 ------- Run | Yrd Mat Min Mat Mat Fac Was Fac DSF Fac Fac Fac DSF Gar Res Res DSF Gar Acc Maximum Alert Level . | . . . . . . . . . . . . . . . . . . . Low Security (%) 100 | 100 100 100 100 100 100 100 100 100 100 100 100 100 100 100 100 100 100 100 Level 1 . | . . . . . . . . . . . . . . . . . . . Level 2 . | . . . . . . . . . . . . . . . . . . . Level 3 . | . . . . . . . . . . . . . . . . . . . Level 4 . | . . . . . . . . . . . . . . . . . . . Level 5 . | . . . . . . . . . . . . . . . . . . . High Security . | . . . . . . . . . . . . . . . . . . . Max Security . | . . . . . . . . . . . . . . . . . . . Peak Influence 103 | . 7 . 103 41 14 4 15 15 15 15 7 4 15 60 13 3 50 28 Initial 26 | . . . . 26 14 4 . 3 7 7 7 4 . 16 13 3 . 17 Average 18 | . 1 . 74 30 14 1 3 1 8 3 7 2 4 35 6 1 25 4 Influence Increases 639 | . 7 . 113 45 . . 30 15 15 40 . . 45 224 4 . 50 51 Destroy 0b10 Robot/C 80 | . . . 80 . . . . . . . . . . . . . . . Destroy 0b10 Robot/NC 15 | . . . . . . . . . . 10 . . . 5 . . . . Destroy Leader 20 | . . . 20 . . . . . . . . . . . . . . . Successful Hack 56 | . 7 . . . . . . . . . . . . 24 4 . . 21 Disable Machine 75 | . . . . 15 . . 15 . . 15 . . . . . . . 30 Anti-Garrison Action 50 | . . . . . . . . . . . . . . . . . 50 . Destroy Structure 13 | . . . 13 . . . . . . . . . . . . . . . Partial Spotted 90 | . . . . . . . 15 . 15 . . . 15 45 . . . . Lose Combat Pursuer 240 | . . . . 30 . . . 15 . 15 . . 30 150 . . . . Influence Decreases 619 | . 7 . 50 77 17 14 25 5 15 40 8 7 15 229 25 4 20 61 Entered New Map 133 | . . . . 37 17 10 . 2 8 8 8 3 . 14 12 1 . 13 Time Decay 346 | . 7 . 40 20 . 4 25 . 7 25 . . . 175 13 . . 30 Lost Part 140 | . . . 10 20 . . . 3 . 7 . 4 15 40 . 3 20 18 Squads Dispatched 18 | . . . 1 5 . . 1 1 1 3 . 1 . 4 . . . 1 Investigation 5 | . . . 1 1 . . 1 . 1 . . . . . . . . 1 Extermination 3 | . . . . . . . . . . 1 . . . 2 . . . . Reinforcement 10 | . . . . 4 . . . 1 . 2 . 1 . 2 . . . . Assault . | . . . . . . . . . . . . . . . . . . . Garrison . | . . . . . . . . . . . . . . . . . . . Intercept . | . . . . . . . . . . . . . . . . . . . Searches Triggered . | . . . . . . . . . . . . . . . . . . . Construction Impeded 1 | . . . . . . . . . . 1 . . . . . . . . Haulers Reinforced . | . . . . . . . . . . . . . . . . . . . Active Scanning Responses . | . . . . . . . . . . . . . . . . . . . Cargo Convoy Interrupts . | . . . . . . . . . . . . . . . . . . . Stealth | -11 -10 -10 -9 -8 -7 -7 -7 -7 -6 -5 -4 -4 -4 -3 -2 -2 -2 -1 --------- Run | Yrd Mat Min Mat Mat Fac Was Fac DSF Fac Fac Fac DSF Gar Res Res DSF Gar Acc Distress Signals 3 | . . . 1 1 . . . . . . . . . 1 . . . . Communications Jammed . | . . . . . . . . . . . . . . . . . . . Distress Signals . | . . . . . . . . . . . . . . . . . . . Times Spotted 118 | . 1 . 11 19 . 4 . 7 1 8 . 4 12 25 . 2 19 5 Peak Tracking Total 19 | . 1 . 7 19 . 4 . 6 1 8 . 4 14 13 . 2 17 4 Tactical Retreats 12 | . . . . 1 . . . 1 . 1 . . 1 6 . . . 2 ECM-based Alert Blocks 4 | . . . . . . . . . . . . . . . . . . 4 Traps | -11 -10 -10 -9 -8 -7 -7 -7 -7 -6 -5 -4 -4 -4 -3 -2 -2 -2 -1 ------- Run | Yrd Mat Min Mat Mat Fac Was Fac DSF Fac Fac Fac DSF Gar Res Res DSF Gar Acc Traps Triggered 7 | . . . . 1 1 . . . . 2 . . 2 . . . . 1 Indirectly . | . . . . . . . . . . . . . . . . . . . Trap Hack Attempts . | . . . . . . . . . . . . . . . . . . . Triggered . | . . . . . . . . . . . . . . . . . . . Disarmed . | . . . . . . . . . . . . . . . . . . . Reprogrammed . | . . . . . . . . . . . . . . . . . . . Reused . | . . . . . . . . . . . . . . . . . . . Traps Extracted . | . . . . . . . . . . . . . . . . . . . Installed . | . . . . . . . . . . . . . . . . . . . Triggered . | . . . . . . . . . . . . . . . . . . . Machines | -11 -10 -10 -9 -8 -7 -7 -7 -7 -6 -5 -4 -4 -4 -3 -2 -2 -2 -1 ---------- Run | Yrd Mat Min Mat Mat Fac Was Fac DSF Fac Fac Fac DSF Gar Res Res DSF Gar Acc Machines Disabled 5 | . . . . 1 . . 1 . . 1 . . . . . . . 2 Max in Single Turn 1 | . . . . 1 . . 1 . . 1 . . . . . . . 1 Machines Repaired . | . . . . . . . . . . . . . . . . . . . Machines Dismantled 2 | . . . . . . . . . . . . . . . . . . 2 Machines Sabotaged . | . . . . . . . . . . . . . . . . . . . Overloaded Fab Kills . | . . . . . . . . . . . . . . . . . . . Hacking | -11 -10 -10 -9 -8 -7 -7 -7 -7 -6 -5 -4 -4 -4 -3 -2 -2 -2 -1 --------- Run | Yrd Mat Min Mat Mat Fac Was Fac DSF Fac Fac Fac DSF Gar Res Res DSF Gar Acc Machines Accessed 12 | . 1 . 1 . . . 2 . 1 . 1 . . 2 1 . 1 2 Terminals 10 | . 1 . . . . . 2 . . . 1 . . 2 1 . 1 2 Fabricators . | . . . . . . . . . . . . . . . . . . . Repair Stations . | . . . . . . . . . . . . . . . . . . . Recycling Units 2 | . . . 1 . . . . . 1 . . . . . . . . . Scanalyzers . | . . . . . . . . . . . . . . . . . . . Garrison Access . | . . . . . . . . . . . . . . . . . . . Total Hacks 21 | . 1 . 2 . . . 3 . 3 . 2 . . 3 1 . 2 4 Successful 9 | . 1 . . . . . 1 . 1 . 1 . . 2 1 . 1 1 Failed 12 | . . . 2 . . . 2 . 2 . 1 . . 1 . . 1 3 Catastrophic 4 | . . . 1 . . . . . . . . . . 1 . . . 2 Database Lockouts . | . . . . . . . . . . . . . . . . . . . Manual 3 | . . . . . . . . . . . . . . . . . 2 1 Terminals 16 | . 1 . . . . . 3 . . . 2 . . 3 1 . 2 4 Fabricators . | . . . . . . . . . . . . . . . . . . . Repair Stations . | . . . . . . . . . . . . . . . . . . . Recycling Units 5 | . . . 2 . . . . . 3 . . . . . . . . . Scanalyzers . | . . . . . . . . . . . . . . . . . . . Garrison Access . | . . . . . . . . . . . . . . . . . . . Terminal Hacks 6 | . 1 . . . . . 1 . . . 1 . . 2 1 . . . Record 1 | . . . . . . . . . . . . . . 1 . . . . Open DSF 3 | . . . . . . . 1 . . . 1 . . . 1 . . . Branch Access Points 1 | . 1 . . . . . . . . . . . . . . . . . Maintenance Status 1 | . . . . . . . . . . . . . . 1 . . . . Fabricator Hacks . | . . . . . . . . . . . . . . . . . . . Repair Station Hacks . | . . . . . . . . . . . . . . . . . . . Recycling Unit Hacks 1 | . . . . . . . . . 1 . . . . . . . . . Process 1 | . . . . . . . . . 1 . . . . . . . . . Scanalyzer . | . . . . . . . . . . . . . . . . . . . Garrison Access Hacks . | . . . . . . . . . . . . . . . . . . . Unauthorized Hacks 2 | . . . . . . . . . . . . . . . . . 1 1 Terminals 2 | . . . . . . . . . . . . . . . . . 1 1 Botnet 1 | . . . . . . . . . . . . . . . . . . 1 Override 1 | . . . . . . . . . . . . . . . . . 1 . Fabricators . | . . . . . . . . . . . . . . . . . . . Repair Stations . | . . . . . . . . . . . . . . . . . . . Recycling Units . | . . . . . . . . . . . . . . . . . . . Scanalyzers . | . . . . . . . . . . . . . . . . . . . Garrison Access . | . . . . . . . . . . . . . . . . . . . Data Cores Recovered . | . . . . . . . . . . . . . . . . . . . Used . | . . . . . . . . . . . . . . . . . . . Hacking Detections 8 | . 1 . 1 . . . 1 . 1 . . . . 2 . . . 2 Full Trace Events 4 | . . . 1 . . . 1 . 1 . . . . . . . . 1 Feedback Events 1 | . . . . . . . . . 1 . . . . . . . . . Corruption 1 | . . . . . . . . . 1 . . . . . . . . . Feedback Blocked . | . . . . . . . . . . . . . . . . . . . Robot Schematics Acquired . | . . . . . . . . . . . . . . . . . . . Robots Built . | . . . . . . . . . . . . . . . . . . . Authchips . | . . . . . . . . . . . . . . . . . . . Time . | . . . . . . . . . . . . . . . . . . . Total Robot Build Rating . | . . . . . . . . . . . . . . . . . . . Part Schematics Acquired . | . . . . . . . . . . . . . . . . . . . Parts Built . | . . . . . . . . . . . . . . . . . . . Authchips . | . . . . . . . . . . . . . . . . . . . Time . | . . . . . . . . . . . . . . . . . . . Total Part Build Rating . | . . . . . . . . . . . . . . . . . . . Part Studies Acquired . | . . . . . . . . . . . . . . . . . . . Parts Repaired . | . . . . . . . . . . . . . . . . . . . Time . | . . . . . . . . . . . . . . . . . . . Parts Recycled . | . . . . . . . . . . . . . . . . . . . Recycled Matter 48 | . . . . . . . . . 48 . . . . . . . . . Retrieved Matter . | . . . . . . . . . . . . . . . . . . . Retrieved Components . | . . . . . . . . . . . . . . . . . . . Parts Scanalyzed . | . . . . . . . . . . . . . . . . . . . Part Schematics Acquired . | . . . . . . . . . . . . . . . . . . . Parts Damaged . | . . . . . . . . . . . . . . . . . . . Bothacking | -11 -10 -10 -9 -8 -7 -7 -7 -7 -6 -5 -4 -4 -4 -3 -2 -2 -2 -1 ------------ Run | Yrd Mat Min Mat Mat Fac Was Fac DSF Fac Fac Fac DSF Gar Res Res DSF Gar Acc Used RIF Installer . | . . . . . . . . . . . . . . . . . . . Robots Hacked . | . . . . . . . . . . . . . . . . . . . Non-combat . | . . . . . . . . . . . . . . . . . . . Combat . | . . . . . . . . . . . . . . . . . . . Robot Hacks Applied . | . . . . . . . . . . . . . . . . . . . Relay Couplers Released . | . . . . . . . . . . . . . . . . . . . Fabnet Peak Effective % . | . . . . . . . . . . . . . . . . . . . Robots Rewired . | . . . . . . . . . . . . . . . . . . . Allies Hacked . | . . . . . . . . . . . . . . . . . . . Hacks Repelled . | . . . . . . . . . . . . . . . . . . . Allies | -11 -10 -10 -9 -8 -7 -7 -7 -7 -6 -5 -4 -4 -4 -3 -2 -2 -2 -1 -------- Run | Yrd Mat Min Mat Mat Fac Was Fac DSF Fac Fac Fac DSF Gar Res Res DSF Gar Acc Total Allies 1 | . . . . . . 1 . . . . . . . . . . . . Largest Group 1 | . . . . . . 1 . . . . . . . . . . . . Highest-Rated Group 31 | . . . . . . 31 . . . . . . . . . . . . Highest-Rated Ally 31 | . . . . . . 31 . . . . . . . . . . . . Total Orders . | . . . . . . . . . . . . . . . . . . . Ally Attacks 6 | . . . . . . 6 . . . . . . . . . . . . Total Damage 84 | . . . . . . 84 . . . . . . . . . . . . Kills . | . . . . . . . . . . . . . . . . . . . Allies Corrupted . | . . . . . . . . . . . . . . . . . . . Allies Melted . | . . . . . . . . . . . . . . . . . . . Intel | -11 -10 -10 -9 -8 -7 -7 -7 -7 -6 -5 -4 -4 -4 -3 -2 -2 -2 -1 ------- Run | Yrd Mat Min Mat Mat Fac Was Fac DSF Fac Fac Fac DSF Gar Res Res DSF Gar Acc Active Infowar (turns) 746 | . . . . . . . . . 28 156 4 16 . 330 44 45 2 121 Sensors 655 | . . . . . . . . . 28 156 4 16 . 330 44 45 2 30 ECM 91 | . . . . . . . . . . . . . . . . . . 91 Robot Analysis Total . | . . . . . . . . . . . . . . . . . . . Derelict Logs Recovered . | . . . . . . . . . . . . . . . . . . . Drone Launches . | . . . . . . . . . . . . . . . . . . . Drone Recoveries . | . . . . . . . . . . . . . . . . . . . Exploration | -11 -10 -10 -9 -8 -7 -7 -7 -7 -6 -5 -4 -4 -4 -3 -2 -2 -2 -1 ------------- Run | Yrd Mat Min Mat Mat Fac Was Fac DSF Fac Fac Fac DSF Gar Res Res DSF Gar Acc Turns Passed 1349 | 15 35 11 83 52 14 53 127 68 30 156 4 16 32 368 44 45 41 155 Spaces Moved 2960 | 21 67 22 116 115 27 102 221 100 77 398 8 62 78 1084 69 68 92 233 Core 593 | 20 67 22 116 13 27 102 221 5 . . . . . . . . . . Treads 1 | 1 . . . . . . . . . . . . . . . . . . Legs . | . . . . . . . . . . . . . . . . . . . Wheels . | . . . . . . . . . . . . . . . . . . . Hover 533 | . . . . . . . . . . . . . . 71 69 68 92 233 Flight 1833 | . . . . 102 . . . 95 77 398 8 62 78 1013 . . . . Fastest Speed 19 | 50 50 50 50 37 50 50 50 28 25 22 19 19 25 27 52 44 44 40 Average Speed 36 | 55 50 50 50 38 50 50 50 36 25 23 19 21 29 30 52 47 44 45 Slowest Speed 160 | 160 50 50 50 50 50 50 50 70 25 28 19 25 35 106 52 52 44 56 Overloaded Moves . | . . . . . . . . . . . . . . . . . . . Propulsion Burnouts . | . . . . . . . . . . . . . . . . . . . Robots Hopped 19 | . . . . 5 . . . . . 3 . 3 . 8 . . . . Potential Cave-ins . | . . . . . . . . . . . . . . . . . . . Cave-ins Triggered . | . . . . . . . . . . . . . . . . . . . Exploration Rate (%) 28 | 2 18 10 15 19 1 81 11 90 3 15 . 69 23 40 2 88 22 7 Regions Visited 18 Branch Regions 1 Pre-discovered Areas . | . . . . . . . . . . . . . . . . . . . Known Exits Taken 8 | . 1 . . 1 . . 1 . 1 1 1 . . 1 1 . . . Unknown Exits Taken 3 | 1 . 1 1 . . . . . . . . . . . . . . . Scrap Searched . | . . . . . . . . . . . . . . . . . . . Spaces Dug . | . . . . . . . . . . . . . . . . . . . Terrain Destroyed 23 | . . . 23 . . . . . . . . . . . . . . . Melee . | . . . . . . . . . . . . . . . . . . . Projectile . | . . . . . . . . . . . . . . . . . . . AOE 23 | . . . 23 . . . . . . . . . . . . . . . Terrain Rammed . | . . . . . . . . . . . . . . . . . . . Walls Destroyed . | . . . . . . . . . . . . . . . . . . . Machines Disabled . | . . . . . . . . . . . . . . . . . . . Actions | -11 -10 -10 -9 -8 -7 -7 -7 -7 -6 -5 -4 -4 -4 -3 -2 -2 -2 -1 --------- Run | Yrd Mat Min Mat Mat Fac Was Fac DSF Fac Fac Fac DSF Gar Res Res DSF Gar Acc Total 3139 | 22 67 21 131 115 27 102 230 129 83 444 9 60 87 1107 75 80 91 259 Wait 36 | . . . 1 . . . . 1 . 31 . 1 . 2 . . . . Move 2906 | 20 66 21 115 105 27 101 220 99 76 391 7 56 77 1067 68 67 91 232 Hop 17 | . . . . 4 . . . . . 3 . 2 . 8 . . . . Pick Up 28 | . 1 . 2 1 . . 3 9 1 5 . . . 4 1 1 . . Fast Attach 40 | 2 . . 1 1 . 1 3 9 . 4 . . . 9 3 6 . 1 Attach 27 | . . . 1 2 . . 1 5 4 2 2 1 . 4 1 . . 4 Detach 8 | . . . 1 1 . . . 1 . . . . 1 3 . 1 . . Swap 3 | . . . . . . . . 1 . . . . . . 1 1 . . Drop 15 | . . . . . . . . 4 . . . . . 6 1 4 . . Fire 2 | . . . 2 . . . . . . . . . . . . . . . Melee 19 | . . . 4 1 . . 3 . 2 8 . . . 1 . . . . Ram 7 | . . . 4 . . . . . . . . . . 3 . . . . Kick . | . . . . . . . . . . . . . . . . . . . Crush . | . . . . . . . . . . . . . . . . . . . Escape Stasis 9 | . . . . . . . . . . . . . 9 . . . . . Rewire . | . . . . . . . . . . . . . . . . . . . Trap . | . . . . . . . . . . . . . . . . . . . Miscellaneous 22 | . . . . . . . . . . . . . . . . . . 22 Route ------- -11/Scrapyard -10/Materials (discovered 2 exits: *Min x2) -10/Mines -9/Materials -8/Materials -7/Factory -7/Waste -7/Factory -7/DSF -6/Factory -5/Factory -4/Factory -4/DSF -4/Garrison -3/Research -2/Research -2/DSF -2/Garrison (discovered 3 exits: *Acc x3) -1/Access To Epsilon Eridani History --------- Turn | Location | Event 7 | -11/Scrapyard | Discovered new exit (range 16) 16 | -11/Scrapyard | Entered Materials 27 | -10/Materials | Identified exit to Mines 51 | -10/Materials | Entered Mines 58 | -10/Mines | Discovered new exit (range 7) 61 | -10/Mines | Received a Mining Laser from a helpful Derelict 62 | -10/Mines | Entered Materials 62 | -9/Materials | Evolved 2 slots: Propulsion x1, Utility x1 144 | -9/Materials | Discovered new exit (range 3) 145 | -9/Materials | Entered another Materials area 145 | -8/Materials | Evolved 2 slots: Propulsion x2 194 | -8/Materials | Discovered new exit (range 8) 197 | -8/Materials | Identified exit to Factory 197 | -8/Materials | Entered Factory 197 | -7/Factory | Evolved 2 slots: Power x1, Utility x1 211 | -7/Factory | Sucked down chute 211 | -7/Factory | Entered Waste 212 | -7/Waste | Met a frightened Derelict 218 | -7/Waste | Spotted C-40 Crusher 226 | -7/Waste | EMP discharged 226 | -7/Waste | Spotted C-40 Crusher 234 | -7/Waste | Spotted C-40 Crusher 243 | -7/Waste | Spotted C-40 Crusher 243 | -7/Waste | Spotted C-40 Crusher 244 | -7/Waste | Spotted C-40 Crusher 249 | -7/Waste | Discovered new exit (range 14) 257 | -7/Waste | Crushed by Compactor (1 part destroyed, 2 dropped) 264 | -7/Waste | Entered Factory 307 | -7/Factory | Build established: Mutant 391 | -7/Factory | Identified exit to DSF 391 | -7/Factory | Entered DSF 423 | -7/DSF | Additional patrols routed to DSF 453 | -7/DSF | Discovered new exit (range 11) 459 | -7/DSF | Identified exit to Factory 459 | -7/DSF | Entered Factory 459 | -6/Factory | Evolved 2 slots: Propulsion x1, Utility x1 471 | -6/Factory | Lost 5 parts (5n) 487 | -6/Factory | Discovered new exit (range 8) 488 | -6/Factory | Identified exit to Factory 489 | -6/Factory | Entered another Factory area 489 | -5/Factory | Evolved 2 slots: Propulsion x1, Utility x1 644 | -5/Factory | Discovered new exit (range 7) 645 | -5/Factory | Identified exit to Factory 645 | -5/Factory | Entered another Factory area 645 | -4/Factory | Evolved 2 slots: Propulsion x1, Utility x1 649 | -4/Factory | Identified exit to DSF 649 | -4/Factory | Entered DSF 661 | -4/DSF | Discovered new exit (range 16) 664 | -4/DSF | Identified exit to Garrison 665 | -4/DSF | Entered Garrison 675 | -4/Garrison | Triggered checkpoint 677 | -4/Garrison | Triggered checkpoint 684 | -4/Garrison | Spotted B-86 Titan 687 | -4/Garrison | Triggered checkpoint 687 | -4/Garrison | Triggered checkpoint 694 | -4/Garrison | Discovered new exit (range 10) 697 | -4/Garrison | Identified exit to Research 697 | -4/Garrison | Entered Research 697 | -3/Research | Evolved 2 slots: Propulsion x1, Utility x1 718 | -3/Research | Lost 8 parts (1p6n1u) 963 | -3/Research | Spotted B-86 Titan 1059 | -3/Research | Discovered new exit (range 13) 1065 | -3/Research | Identified exit to Research 1065 | -3/Research | Entered another Research area 1065 | -2/Research | Evolved 2 slots: Propulsion x2 1109 | -2/Research | Identified exit to DSF 1109 | -2/Research | Entered DSF 1137 | -2/DSF | Additional patrols routed to DSF 1149 | -2/DSF | Discovered new exit (range 14) 1154 | -2/DSF | Identified exit to Garrison 1154 | -2/DSF | Entered Garrison 1169 | -2/Garrison | Spotted B-90 Cyclops 1169 | -2/Garrison | Identified exit to Access 1195 | -2/Garrison | Entered Access 1195 | -1/Access | Evolved 2 slots: Propulsion x1, Utility x1 1270 | -1/Access | Lost 4 parts (1p1n1u1w) 1308 | -1/Access | Lost 4 parts (1p3n) 1346 | -1/Access | Discovered new exit (range 4) 1349 | -1/Access | Identified exit to Surface 1350 | *** | Escaped! Last Messages --------------- 01268_ Knocked back. 01273_ Antigrav Array destroyed. 01273_ Critical hit (Blast). 01273_ Knocked back. 01275_ Triggered Blade Trap. 01275_ Massive razor-sharp blades shoot up from within the floor. 01277_ Antimatter Reactor destroyed. 01277_ Knocked back. 01277_ Acquired 6 matter. 01280_ Penetrated by Slug. 01300_ Connecting with Terminal... 01300_ ALERT: Suspicious activity at Terminal A001. Dispatching Investigation squad. 01303_ Dismantling Sealed Barrier with Imp. Plasma Cutter. 01333_ Sealed Barrier dismantled. 01336_ Dismantling Main Access Shell with Imp. Plasma Cutter. 01346_ Main Access Shell dismantled. 01346_ EXIT=FOUND 01349_ EXIT=IDENTIFIED: SURFACE [Achievement: Engineer's Best Friend] Map ----- +----------------------------------------------------+ | ?????????????????????????????????????????????????? | | ?????????????????????????????????????????????????? | | ?????????????????????????????????????????????????? | | ?????????????????????????????????????????????????? | | ?????????????????????????????????????????????????? | | ?????????????????????????????????????????????????? | | ?????????????????????????????????????????????????? | | ?????????????????????????????????????????????????? | | ?????????????????????????????????????????????????? | | ?????????????????????????????????????????????????? | | ???????????#########################+#???????????? | | ???????????# ???????????? | | ???????????# ????????????? | | ???????????# ####### ""#?????????????????? | | ???????????# #?????# ""#?????????????????? | | ???????????# #?????# ""#?????????????????? | | ???????????# #?????# T#?????????????????? | | ???????????# #?????# ""#?????????????????? | | ??#????????# #?????# ""#?????????????????? | | ??#==??????# #?????# ""#?????????????????? | | ??#=== ????# #?????""""" """"?????????????????? | | ??#=== ??# #?????# #?????????????????? | | ??# # #?????# #?????????????????? | | ??# + #?????# "" " #?????????????????? | | ??# ! # #?????# " " #?????????????????? | | ??# ??# #?????# ?" @" "? #?????????????????? | | ??# ????# #?????#??" "" "? #?????????????????? | | ??# ??????# #????????" "??#?????????????????? | | ??########## #????????""""""????????????????????? | | ??# !!! # #??????????????????????????????????? | | ??# !!! + #??????????????????????????????????? | | ??# !!! # #??????????????????????????????????? | | ??# # #??????????????????????????????????? | | ??# ?# #??????????????????????????????????? | | ??# ?# #??????????????????????????????????? | | ??# ??# #??????????????????????????????????? | | ??# ??# #??????????????????????????????????? | | ??# ???# #??????????????????????????????????? | | ??### ##???# #??????????????????????????????????? | | ###?##?????# "??????????????????????????????????? | | ??????# #??????????????????????????????????? | | ????# #??????????????????????????????????? | | ??# #??????????????????????????????????? | | # #######????????????????????????????? | | + % ?????????????????????? | | ! # #######????????????????????????????? | | ??# #??????????????????????????????????? | | #######??### ##?????????????????????????????????? | | ##########" #?????????????????????????????????? | | % #?????????????????????????????????? | +----------------------------------------------------+ Best States ------------- Heat Dissipation 52 Coolant Potential 160 Energy Generation 45 Energy Capacity 415 Matter Stores 300 Matter Capacity 300 Sight Range 16 Robot Scan Range 15 Terrain Scan Density 10 ECM Strength 1 Base Temperature (-) 200 Corruption Block 9 Armor Coverage 225 Power Shielding 66 Evasion (%) 76 Offensive Hacking 10 Item Schematics ----------------- None Robot Schematics ------------------ None Fabricated ------------ Nothing Repaired ---------- Nothing Studied --------- None Alien Tech Used ----------------- None Achievements -------------- Engineer's Best Friend Challenges ------------ None Game ------ Seed HellfireProjectileThruster Manual? 0 Play Time 00:31:43 Cumulative 639.0 hours Start 2026.04.06 @ 17:38:05 End 2026.04.06 @ 18:08:23 Sessions 1 Manual Loads 0 Difficulty Rogue Special Mode None Game No. 359 Rogue 334 Adventurer 7 Explorer 18 Win Type 0 Total 57 Types 37/1/8/2/2/1/1/3/0/2 Lore% 95 Gallery% 86 Achievement% 69 Wizard Run 0 Options --------- Layout 0 ASCII 0 Keyboard 0 Movement Numpad Keybinds 0 Fullscreen 1 Font 18/SmallcapsGlow Map View 76x50 Zoom Use 0% Tactical HUD 1 Map Filters NONE Filters NONE Steam 1 RUN: 0bd56c44-9af4-4dce-88fb-8e5c95f02360